Workbook

Sheet Dashboard
M3: 2021
M4: OCTUBRE
A5: Acumulado a: | B5: =M4 -> OCTUBRE | E5: Datos acumulados | G5: Cuota Negocio / Total ASEMPLEO | J5: =empresa_ccaa!L5 -> iEMPRESA | L5: ¿▲"sin" mi Empresa?
A6: Total | B6: Facturación, € | D6: (a) | E6: =J5 -> iEMPRESA | I6: Cuota de Facturación | J6: ∆ | L6: (b) | M6: ∆ (a-b)
B7: 2020 | C7: 2021 | D7: % i.a. | E7: =B7 -> 2020 | F7: =C7 -> 2021 | G7: % i.a. | H7: =E7 -> 2020 | I7: =F7 -> 2021 | J7: Dif.P.P. | L7: % i.a. | M7: Dif.P.P.
A8: Nacional | B8: 2787417360 | C8: 3286195887 | D8: =((C8/B8)-1) -> 0.1789393055 | E8: =empresa_ccaa!K12 -> 0 | F8: =empresa_ccaa!L12 -> 0 | G8: =IF(E8>0,((F8/E8)-1),"n.a.") -> n.a. | H8: =E8/B8 -> 0 | I8: =F8/C8 -> 0 | J8: =(I8-H8)*100 -> 0 | L8: =((C8-F8)/(B8-E8))-1 -> 0.1789393055 | M8: =(D8-L8)*100 -> 0 | JP8: Empresa - Sector | JQ8: Empresa - Sector
A9: ANDALUCIA | B9: 254583363.1 | C9: 320831171.9 | D9: =((C9/B9)-1) -> 0.2602204952 | E9: =empresa_ccaa!K13 -> 0 | F9: =empresa_ccaa!L13 -> 0 | G9: n.a. | H9: =E9/B9 -> 0 | I9: =F9/C9 -> 0 | J9: =(I9-H9)*100 -> 0 | L9: =((C9-F9)/(B9-E9))-1 -> 0.2602204952 | M9: 0 | JQ9: p.p.
A10: ARAGON | B10: 130608889.7 | C10: 164530787.4 | D10: =((C10/B10)-1) -> 0.2597212014 | E10: =empresa_ccaa!K14 -> 0 | F10: =empresa_ccaa!L14 -> 0 | G10: n.a. | H10: 0 | I10: 0 | J10: 0 | L10: 0.2597212014 | M10: 0 | JQ10: Puntos porcentuales
A11: ASTURIAS | B11: 51537167.06 | C11: 63135218.52 | D11: 0.2250424717 | E11: =empresa_ccaa!K15 -> 0 | F11: =empresa_ccaa!L15 -> 0 | G11: n.a. | H11: 0 | I11: 0 | J11: 0 | L11: 0.2250424717 | M11: 0 | JP11: Dif. Ritmo | JQ11: Importancia Relativa | JT11: Empresa
A12: BALEARES | B12: 5996077.824 | C12: 11742268.6 | D12: 0.9583249156 | E12: =empresa_ccaa!K16 -> 0 | F12: =empresa_ccaa!L16 -> 0 | G12: =IF(E12>0,((F12/E12)-1),"n.a.") -> n.a. | H12: 0 | I12: 0 | J12: 0 | L12: 0.9583249156 | M12: 0 | JP12: =IF(G8="n.a.","n.a.",(G8-D8)*100) -> n.a. | JQ12: =empresa_ccaa!M12-empresa_ccaa!H12 ->  | JS12: criterio_rank | JT12: peso | JU12: Comunidad | JV12: % i.a. | JW12: Total_Regional
A13: CANARIAS | B13: 42183954.01 | C13: 43579040.06 | D13: 0.03307148606 | E13: =empresa_ccaa!K17 -> 0 | F13: =empresa_ccaa!L17 -> 0 | G13: n.a. | H13: 0 | I13: 0 | J13: 0 | L13: 0.03307148606 | M13: 0 | JP13: =IF(G9="n.a.","n.a.",(G9-D9)*100) -> n.a. | JQ13: =empresa_ccaa!M13-empresa_ccaa!H13 ->  | JS13: =IF(JT13=$JT$31,1,0) -> 1 | JT13: =I9 -> 0 | JU13: =A9 -> ANDALUCIA | JV13: =G9 -> n.a. | JW13: =D9 -> 0.2602204952
A14: CANTABRIA | B14: 71937947.58 | C14: 87811301.96 | D14: 0.220653423 | E14: =empresa_ccaa!K18 -> 0 | F14: =empresa_ccaa!L18 -> 0 | G14: n.a. | H14: 0 | I14: 0 | J14: 0 | L14: 0.220653423 | M14: 0 | JP14: =IF(G10="n.a.","n.a.",(G10-D10)*100) -> n.a. | JQ14: =empresa_ccaa!M14-empresa_ccaa!H14 ->  | JS14: =IF(JT14=$JT$31,1,0) -> 1 | JT14: =I10 -> 0 | JU14: =A10 -> ARAGON | JV14: =G10 -> n.a. | JW14: =D10 -> 0.2597212014
A15: CASTILLA-LA MANCHA | B15: 168688039.2 | C15: 206417714.5 | D15: 0.223665385 | E15: =empresa_ccaa!K19 -> 0 | F15: =empresa_ccaa!L19 -> 0 | G15: n.a. | H15: 0 | I15: 0 | J15: 0 | L15: 0.223665385 | M15: 0 | JP15: =IF(G11="n.a.","n.a.",(G11-D11)*100) -> n.a. | JQ15: =empresa_ccaa!M15-empresa_ccaa!H15 ->  | JS15: =IF(JT15=$JT$31,1,0) -> 1 | JT15: =I11 -> 0 | JU15: =A11 -> ASTURIAS | JV15: =G11 -> n.a. | JW15: =D11 -> 0.2250424717
A16: CASTILLA Y LEÓN | B16: 175827895.9 | C16: 179086356.6 | D16: 0.01853210298 | E16: =empresa_ccaa!K20 -> 0 | F16: =empresa_ccaa!L20 -> 0 | G16: n.a. | H16: 0 | I16: 0 | J16: =(I16-H16)*100 -> 0 | L16: 0.01853210298 | M16: 0 | JP16: =IF(G12="n.a.","n.a.",(G12-D12)*100) -> n.a. | JQ16: =empresa_ccaa!M16-empresa_ccaa!H16 ->  | JS16: =IF(JT16=$JT$31,1,0) -> 1 | JT16: =I12 -> 0 | JU16: =A12 -> BALEARES | JV16: =G12 -> n.a. | JW16: =D12 -> 0.9583249156
A17: CATALUÑA | B17: 632199489 | C17: 767786738.2 | D17: 0.2144690902 | E17: =empresa_ccaa!K21 -> 0 | F17: =empresa_ccaa!L21 -> 0 | G17: =IF(E17>0,((F17/E17)-1),"n.a.") -> n.a. | H17: 0 | I17: 0 | J17: =(I17-H17)*100 -> 0 | L17: 0.2144690902 | M17: 0 | JP17: =IF(G13="n.a.","n.a.",(G13-D13)*100) -> n.a. | JQ17: =empresa_ccaa!M17-empresa_ccaa!H17 ->  | JS17: =IF(JT17=$JT$31,1,0) -> 1 | JT17: =I13 -> 0 | JU17: =A13 -> CANARIAS | JV17: =G13 -> n.a. | JW17: =D13 -> 0.03307148606
A18: COMUNIDAD VALENCIANA | B18: 209750441.8 | C18: 285573523.1 | D18: 0.3614918793 | E18: =empresa_ccaa!K22 -> 0 | F18: =empresa_ccaa!L22 -> 0 | G18: n.a. | H18: 0 | I18: 0 | J18: =(I18-H18)*100 -> 0 | L18: 0.3614918793 | M18: 0 | JP18: =IF(G14="n.a.","n.a.",(G14-D14)*100) -> n.a. | JQ18: =empresa_ccaa!M18-empresa_ccaa!H18 ->  | JS18: =IF(JT18=$JT$31,1,0) -> 1 | JT18: =I14 -> 0 | JU18: =A14 -> CANTABRIA | JV18: =G14 -> n.a. | JW18: =D14 -> 0.220653423
A19: EXTREMADURA | B19: 30275918.08 | C19: 42863364.72 | D19: 0.4157577191 | E19: =empresa_ccaa!K23 -> 0 | F19: =empresa_ccaa!L23 -> 0 | G19: n.a. | H19: 0 | I19: 0 | J19: 0 | L19: 0.4157577191 | M19: 0 | JP19: =IF(G15="n.a.","n.a.",(G15-D15)*100) -> n.a. | JQ19: =empresa_ccaa!M19-empresa_ccaa!H19 ->  | JS19: =IF(JT19=$JT$31,1,0) -> 1 | JT19: =I15 -> 0 | JU19: =A15 -> CASTILLA-LA MANCHA | JV19: =G15 -> n.a. | JW19: =D15 -> 0.223665385
A20: GALICIA | B20: 130404339.2 | C20: 123392668.9 | D20: -0.05376868809 | E20: =empresa_ccaa!K24 -> 0 | F20: =empresa_ccaa!L24 -> 0 | G20: n.a. | H20: 0 | I20: 0 | J20: 0 | L20: -0.05376868809 | M20: 0 | JP20: =IF(G16="n.a.","n.a.",(G16-D16)*100) -> n.a. | JQ20: =empresa_ccaa!M20-empresa_ccaa!H20 ->  | JS20: =IF(JT20=$JT$31,1,0) -> 1 | JT20: =I16 -> 0 | JU20: =A16 -> CASTILLA Y LEÓN | JV20: =G16 -> n.a. | JW20: =D16 -> 0.01853210298
A21: MADRID | B21: 459041624.3 | C21: 515229583.2 | D21: 0.1224027536 | E21: =empresa_ccaa!K25 -> 0 | F21: =empresa_ccaa!L25 -> 0 | G21: n.a. | H21: 0 | I21: 0 | J21: 0 | L21: 0.1224027536 | M21: 0 | JP21: =IF(G17="n.a.","n.a.",(G17-D17)*100) -> n.a. | JQ21: =empresa_ccaa!M21-empresa_ccaa!H21 ->  | JS21: =IF(JT21=$JT$31,1,0) -> 1 | JT21: =I17 -> 0 | JU21: =A17 -> CATALUÑA | JV21: =G17 -> n.a. | JW21: =D17 -> 0.2144690902
A22: MURCIA | B22: 212469362.1 | C22: 222651457.7 | D22: 0.04792265359 | E22: =empresa_ccaa!K26 -> 0 | F22: =empresa_ccaa!L26 -> 0 | G22: n.a. | H22: 0 | I22: 0 | J22: 0 | L22: 0.04792265359 | M22: 0 | JP22: =IF(G18="n.a.","n.a.",(G18-D18)*100) -> n.a. | JQ22: =empresa_ccaa!M22-empresa_ccaa!H22 ->  | JS22: =IF(JT22=$JT$31,1,0) -> 1 | JT22: =I18 -> 0 | JU22: =A18 -> COMUNIDAD VALENCIANA | JV22: =G18 -> n.a. | JW22: =D18 -> 0.3614918793
A23: NAVARRA | B23: 76564832.55 | C23: 86448972.51 | D23: 0.1290950378 | E23: =empresa_ccaa!K27 -> 0 | F23: =empresa_ccaa!L27 -> 0 | G23: n.a. | H23: 0 | I23: 0 | J23: 0 | L23: 0.1290950378 | M23: 0 | JP23: =IF(G19="n.a.","n.a.",(G19-D19)*100) -> n.a. | JQ23: =empresa_ccaa!M23-empresa_ccaa!H23 ->  | JS23: =IF(JT23=$JT$31,1,0) -> 1 | JT23: =I19 -> 0 | JU23: =A19 -> EXTREMADURA | JV23: =G19 -> n.a. | JW23: =D19 -> 0.4157577191
A24: PAIS VASCO | B24: 109955937.5 | C24: 139574424.6 | D24: 0.2693668731 | E24: =empresa_ccaa!K28 -> 0 | F24: =empresa_ccaa!L28 -> 0 | G24: n.a. | H24: 0 | I24: 0 | J24: 0 | L24: 0.2693668731 | M24: 0 | JP24: =IF(G20="n.a.","n.a.",(G20-D20)*100) -> n.a. | JQ24: =empresa_ccaa!M24-empresa_ccaa!H24 ->  | JS24: =IF(JT24=$JT$31,1,0) -> 1 | JT24: =I20 -> 0 | JU24: =A20 -> GALICIA | JV24: =G20 -> n.a. | JW24: =D20 -> -0.05376868809
A25: RIOJA (LA) | B25: 25392081.21 | C25: 25541294.15 | D25: 0.005876357316 | E25: =empresa_ccaa!K29 -> 0 | F25: =empresa_ccaa!L29 -> 0 | G25: n.a. | H25: 0 | I25: 0 | J25: 0 | L25: 0.005876357316 | M25: 0 | JP25: =IF(G21="n.a.","n.a.",(G21-D21)*100) -> n.a. | JQ25: =empresa_ccaa!M25-empresa_ccaa!H25 ->  | JS25: =IF(JT25=$JT$31,1,0) -> 1 | JT25: =I21 -> 0 | JU25: =A21 -> MADRID | JV25: =G21 -> n.a. | JW25: =D21 -> 0.1224027536
JP26: =IF(G22="n.a.","n.a.",(G22-D22)*100) -> n.a. | JQ26: =empresa_ccaa!M26-empresa_ccaa!H26 ->  | JS26: =IF(JT26=$JT$31,1,0) -> 1 | JT26: =I22 -> 0 | JU26: =A22 -> MURCIA | JV26: =G22 -> n.a. | JW26: =D22 -> 0.04792265359
JP27: =IF(G23="n.a.","n.a.",(G23-D23)*100) -> n.a. | JQ27: =empresa_ccaa!M27-empresa_ccaa!H27 ->  | JS27: =IF(JT27=$JT$31,1,0) -> 1 | JT27: =I23 -> 0 | JU27: =A23 -> NAVARRA | JV27: =G23 -> n.a. | JW27: =D23 -> 0.1290950378
J28: =I6 -> Cuota de Facturación | JP28: =IF(G24="n.a.","n.a.",(G24-D24)*100) -> n.a. | JQ28: =empresa_ccaa!M28-empresa_ccaa!H28 ->  | JS28: =IF(JT28=$JT$31,1,0) -> 1 | JT28: =I24 -> 0 | JU28: =A24 -> PAIS VASCO | JV28: =G24 -> n.a. | JW28: =D24 -> 0.2693668731
M29: =I7 -> 2021 | JP29: =IF(G25="n.a.","n.a.",(G25-D25)*100) -> n.a. | JQ29: =empresa_ccaa!M29-empresa_ccaa!H29 ->  | JS29: =IF(JT29=$JT$31,1,0) -> 1 | JT29: =I25 -> 0 | JU29: =A25 -> RIOJA (LA) | JV29: =G25 -> n.a. | JW29: =D25 -> 0.005876357316
B30: % i.a. | F30: % i.a. | JS30: codifico=1 | JT30: máximo
B31: =C7 -> 2021 | F31: =B31 -> 2021 | JS31: =DMAX(JS12:JU29,JT12,JS12:JS29)*1 -> 0 | JT31: =MAX(JT13:JT29) -> 0
B32: Total | F32: Empresa | J32: =J5 -> iEMPRESA | JR32: geo data | JS32: =VLOOKUP(1,JS12:JW29,3,0) -> ANDALUCIA
M33: Ámbito | JS33: el dato a buscar debe estar en la primera columna.
A34: Ámbito | B34: =F34 -> Nacional | F34: =J34 -> Nacional | J34: Nacional | M34: Nacional | JS34: =VLOOKUP(1,JS12:JW29,4,0)*1 -> 
JS35: =VLOOKUP(1,JS12:JW29,5,0)*1 -> 0.2602204952
J38: =JS32 -> ANDALUCIA | M38: CCAA
M39: Líder para la
B40: % i.a. | F40: % i.a. | M40: Empresa
B41: =B31 -> 2021 | F41: =B41 -> 2021
B42: Total | F42: Empresa | J42: =J32 -> iEMPRESA
A44: Ámbito | B44: =F44 -> ANDALUCIA | F44: =J44 -> ANDALUCIA | J44: =J38 -> ANDALUCIA
A48: Fuente: Cifras consolidadas del sector. Valores absolutos 2015-2021 y cifras de evolución de 2016 a la fecha. ASEMPLEO ©.
A49: Nota de Confidencialidad: Este informe comparativo contiene datos redondeados que son ficticeos y serán reemplazados por los que la Empresa introduzca en "empresa_ccaa".

Sheet Ayuda y Version (hidden)
G2: Versión de plantilla: | H2: 2.5

Sheet pBlock (hidden)
B4: Block Test
B5: Info1 | C5: Info2

Sheet pAccel0 (hidden)
A1: Gauge Configuration | O1: Gauge Configuration | Z1: Gauge Configuration | AK1: Gauge Configuration
F2: Decal | T2: Decal | AE2: Decal | AP2: Decal
A3: Title: | B3: =Dashboard!#REF! ->  | F3: 0 | O3: Title: | P3: =pAccel0!B3 ->  | T3: 0 | Z3: Title: | AA3: Empresa | AE3: 0 | AK3: Title: | AL3: CCAA | AP3: 0
A4: Real Value: | B4: =Dashboard!#REF! ->  | O4: Real Value: | P4: =Dashboard!I8 -> 0 | Z4: Real Value: | AA4: =Dashboard!I8 -> 0 | AK4: Real Value: | AL4: =Dashboard!JS31 -> 0
A6: Color bands | O6: Color bands | Z6: Color bands | AK6: Color bands
A7: Red: | B7: 2 | O7: Red: | P7: 2 | Z7: Red: | AA7: 2 | AK7: Red: | AL7: 2
A8: Yellow: | B8: 15 | O8: Yellow: | P8: 15 | Z8: Yellow: | AA8: 15 | AK8: Yellow: | AL8: 15
A9: Green: | B9: 23 | O9: Green: | P9: 23 | Z9: Green: | AA9: 23 | AK9: Green: | AL9: 23
A11: Advanced Parameters | O11: Advanced Parameters | Z11: Advanced Parameters | AK11: Advanced Parameters
B12: Value to 100% | C12: =IF(ISERROR((B4-F3/100)*B27),0,(B4-F3/100)*B27) -> 0 | P12: Value to 100% | Q12: =IF(ISERROR((P4-T3/100)*P27),0,(P4-T3/100)*P27) -> 0 | AA12: Value to 100% | AB12: =IF(ISERROR((AA4-AE3/100)*AA27),0,(AA4-AE3/100)*AA27) -> 0 | AL12: Value to 100% | AM12: =IF(ISERROR((AL4-AP3/100)*AL27),0,(AL4-AP3/100)*AL27) -> 0
B13: Relative value | C13: =IF(C12>100%,102%,IF(C12<0%,-2%,C12))*1.506-0.253 -> -0.253 | P13: Relative value | Q13: =IF(Q12>100%,102%,IF(Q12<0%,-2%,Q12))*1.506-0.253 -> -0.253 | AA13: Relative value | AB13: =IF(AB12>100%,102%,IF(AB12<0%,-2%,AB12))*1.506-0.253 -> -0.253 | AL13: Relative value | AM13: =IF(AM12>100%,102%,IF(AM12<0%,-2%,AM12))*1.506-0.253 -> -0.253
A15: Angle | C15: =C13*PI() -> -0.7948229414 | O15: Angle | Q15: =Q13*PI() -> -0.7948229414 | Z15: Angle | AB15: =AB13*PI() -> -0.7948229414 | AK15: Angle | AM15: =AM13*PI() -> -0.7948229414
A16: x | B16: 0 | C16: =-COS(C15) -> -0.7004111508 | O16: x | P16: 0 | Q16: =-COS(Q15) -> -0.7004111508 | Z16: x | AA16: 0 | AB16: =-COS(AB15) -> -0.7004111508 | AK16: x | AL16: 0 | AM16: =-COS(AM15) -> -0.7004111508
A17: y | B17: 0 | C17: =SIN(C15) -> -0.7137396023 | O17: y | P17: 0 | Q17: =SIN(Q15) -> -0.7137396023 | Z17: y | AA17: 0 | AB17: =SIN(AB15) -> -0.7137396023 | AK17: y | AL17: 0 | AM17: =SIN(AM15) -> -0.7137396023
D19: Value | E19: Label | R19: Value | S19: Label | AC19: Value | AD19: Label | AN19: Value | AO19: Label
C20: 70 | D20: 10 | E20: =B26+F3 -> 4 | Q20: 70 | R20: 10 | S20: =P26+T3 -> 4 | AB20: 70 | AC20: 10 | AD20: =AA26+AE3 -> 4 | AM20: 70 | AN20: 10 | AO20: =AL26+AP3 -> 4
C21: =B7*$C$20/$B$25 -> 3.5 | D21: 10 | E21: =E20+$B$26 -> 8 | Q21: =P7*$C$20/$B$25 -> 3.5 | R21: 10 | S21: =S20+$B$26 -> 8 | AB21: =AA7*$AB$20/$AA$25 -> 3.5 | AC21: 10 | AD21: =AD20+$AA$26 -> 8 | AM21: =AL7*$AM$20/$AL$25 -> 3.5 | AN21: 10 | AO21: =AO20+$AL$26 -> 8
C22: =B8*$C$20/$B$25 -> 26.25 | D22: 10 | E22: 12 | Q22: =P8*$C$20/$B$25 -> 26.25 | R22: 10 | S22: 12 | AB22: =AA8*$AB$20/$AA$25 -> 26.25 | AC22: 10 | AD22: 12 | AM22: =AL8*$AM$20/$AL$25 -> 26.25 | AN22: 10 | AO22: =AO21+$AL$26 -> 12
C23: =B9*$C$20/$B$25 -> 40.25 | D23: 10 | E23: 16 | Q23: =P9*$C$20/$B$25 -> 40.25 | R23: 10 | S23: 16 | AB23: =AA9*$AB$20/$AA$25 -> 40.25 | AC23: 10 | AD23: 16 | AM23: 40.25 | AN23: 10 | AO23: 16
A24: White | C24: 23 | D24: 10 | E24: 20 | O24: White | Q24: 23 | R24: 10 | S24: 20 | Z24: White | AB24: 23 | AC24: 10 | AD24: 20 | AK24: White | AM24: 23 | AN24: 10 | AO24: 20
A25: Total | B25: =SUM(B7:B24) -> 40 | C25: =SUM(C21:C24) -> 93 | D25: 10 | E25: 24 | O25: Total | P25: =SUM(P7:P24) -> 40 | Q25: =SUM(Q21:Q24) -> 93 | R25: 10 | S25: 24 | Z25: Total | AA25: =SUM(AA7:AA24) -> 40 | AB25: =SUM(AB21:AB24) -> 93 | AC25: 10 | AD25: 24 | AK25: Total | AL25: =SUM(AL7:AL24) -> 40 | AM25: =SUM(AM21:AM24) -> 93 | AN25: 10 | AO25: 24
A26: Increment | B26: =B25/10 -> 4 | D26: 10 | E26: 28 | O26: Increment | P26: =P25/10 -> 4 | R26: 10 | S26: 28 | Z26: Increment | AA26: =AA25/10 -> 4 | AC26: 10 | AD26: 28 | AK26: Increment | AL26: =AL25/10 -> 4 | AN26: 10 | AO26: 28
A27: Conversion | B27: =100/B25 -> 2.5 | D27: 10 | E27: 32 | O27: Conversion | P27: =100/P25 -> 2.5 | R27: 10 | S27: 32 | Z27: Conversion | AA27: =100/AA25 -> 2.5 | AC27: 10 | AD27: 32 | AK27: Conversion | AL27: =100/AL25 -> 2.5 | AN27: 10 | AO27: 32
D28: 10 | E28: 36 | R28: 10 | S28: 36 | AC28: 10 | AD28: 36 | AN28: 10 | AO28: 36
D29: 10 | E29: 40 | R29: 10 | S29: 40 | AC29: 10 | AD29: 40 | AN29: 10 | AO29: 40
D30: 33 | E30: =F3 -> 0 | R30: 33 | S30: =T3 -> 0 | AC30: 33 | AD30: =AE3 -> 0 | AN30: 33 | AO30: =AP3 -> 0

Sheet pAccel1 (hidden)
A1: Gauge Configuration | Q1: Gauge Configuration | X1: Gauge Configuration | AE1: Gauge Configuration | AL1: Gauge Configuration | AS1: Gauge Configuration | AZ1: Gauge Configuration | BG1: Gauge Configuration
F2: Decal | V2: Decal | AC2: Decal | AJ2: Decal | AQ2: Decal | AX2: Decal | BE2: Decal | BL2: Decal
A3: Title: | B3: CPDs | F3: 100 | Q3: Title: | R3: Facturación | V3: 100 | X3: Title: | Y3: CPDs | AC3: 100 | AE3: Title: | AF3: Facturación | AJ3: 100 | AL3: Title: | AM3: Facturación | AQ3: 100 | AS3: Title: | AT3: Facturación | AX3: 100 | AZ3: Title: | BA3: Facturación | BE3: 100 | BG3: Title: | BH3: Facturación | BL3: 100
A4: Real Value: | B4: =Dashboard!#REF! ->  | C4: =Dashboard!#REF! ->  | Q4: Real Value: | R4: =Dashboard!#REF! ->  | X4: Real Value: | Y4: =Dashboard!#REF! ->  | AE4: Real Value: | AF4: =Dashboard!#REF! ->  | AL4: Real Value: | AM4: =Dashboard!D8 -> 0.1789393055 | AS4: Real Value: | AT4: =Dashboard!$G$8 -> n.a. | AZ4: Real Value: | BA4: =Dashboard!JS35 -> 0.2602204952 | BG4: Real Value: | BH4: =Dashboard!JS34 -> 
A6: Color bands
A7: Red: | B7: -50
A8: Yellow: | B8: 0
A9: Green: | B9: 50
A11: Advanced Parameters | Q11: Advanced Parameters | X11: Advanced Parameters | AE11: Advanced Parameters | AL11: Advanced Parameters | AS11: Advanced Parameters | AZ11: Advanced Parameters | BG11: Advanced Parameters
B12: Value to 100% | C12: =IF(ISERROR((B4-F3/100)*B27),0,(B4-F3/100)*B27) -> 0 | E12: =IF(ISERROR((C4-F3/100)*B27),0,(C4-F3/100)*B27) -> 0 | R12: Value to 100% | S12: =IF(ISERROR((R4-V3/100)*R27),0,(R4-V3/100)*R27) -> 0 | Y12: Value to 100% | Z12: =IF(ISERROR((Y4-AC3/100)*Y27),0,(Y4-AC3/100)*Y27) -> 0 | AF12: Value to 100% | AG12: =IF(ISERROR((AF4-AJ3/100)*AF27),0,(AF4-AJ3/100)*AF27) -> 0 | AM12: Value to 100% | AN12: =IF(ISERROR((AM4-AQ3/100)*AM27),0,(AM4-AQ3/100)*AM27) -> -1.642121389 | AT12: Value to 100% | AU12: =IF(ISERROR((AT4-AX3/100)*AT27),0,(AT4-AX3/100)*AT27) -> 0 | BA12: Value to 100% | BB12: =IF(ISERROR((BA4-BE3/100)*BA27),0,(BA4-BE3/100)*BA27) -> -1.47955901 | BH12: Value to 100% | BI12: =IF(ISERROR((BH4-BL3/100)*BH27),0,(BH4-BL3/100)*BH27) -> 0
B13: Relative value | C13: =IF(B4<-100%,-100%,IF(B4>100%,100%,2*B4/1)) ->  | D13: ojo1, todo en porcentaje, por 2, y con 1 al final en lugar de 100. | E13: =IF(C4<-100%,-100%,IF(C4>100%,100%,2*C4/1)) ->  | I13: Todos los negritas tienen dato 50, en lugar de 100 para que la escala recorra menos. | R13: Relative value | S13: =IF(R4<-100%,-100%,IF(R4>100%,100%,2*R4/1)) ->  | Y13: Relative value | Z13: =IF(Y4<-100%,-100%,IF(Y4>100%,100%,2*Y4/1)) ->  | AF13: Relative value | AG13: =IF(AF4<-100%,-100%,IF(AF4>100%,100%,2*AF4/1)) ->  | AM13: Relative value | AN13: =IF(AM4<-100%,-100%,IF(AM4>100%,100%,2*AM4/1)) -> 0.357878611 | AT13: Relative value | AU13: =IF(AT4<-100%,-100%,IF(AT4>100%,100%,2*AT4/1)) -> 1 | BA13: Relative value | BB13: =IF(BA4<-100%,-100%,IF(BA4>100%,100%,2*BA4/1)) -> 0.5204409904 | BH13: Relative value | BI13: =IF(BH4<-100%,-100%,IF(BH4>100%,100%,2*BH4/1)) -> 
A15: Angle | C15: =C13*PI()/2 ->  | E15: =E13*PI()/2 ->  | Q15: Angle | S15: =S13*PI()/2 ->  | X15: Angle | Z15: =Z13*PI()/2 ->  | AE15: Angle | AG15: =AG13*PI()/2 ->  | AL15: Angle | AN15: =AN13*PI()/2 -> 0.5621544076 | AS15: Angle | AU15: =AU13*PI()/2 -> 1.570796327 | AZ15: Angle | BB15: =BB13*PI()/2 -> 0.8175067961 | BG15: Angle | BI15: =BI13*PI()/2 -> 
A16: x | B16: 0 | C16: =SIN(C15) ->  | D16: =B16 -> 0 | E16: =SIN(E15) ->  | Q16: x | R16: 0 | S16: =SIN(S15) ->  | X16: x | Y16: 0 | Z16: =SIN(Z15) ->  | AE16: x | AF16: 0 | AG16: =SIN(AG15) ->  | AL16: x | AM16: 0 | AN16: =SIN(AN15) -> 0.5330102966 | AS16: x | AT16: 0 | AU16: =SIN(AU15) -> 1 | AZ16: x | BA16: 0 | BB16: =SIN(BB15) -> 0.7294426425 | BG16: x | BH16: 0 | BI16: =SIN(BI15) -> 
A17: y | B17: 0 | C17: =-COS(C15) ->  | D17: =B17 -> 0 | E17: =-COS(E15) ->  | Q17: y | R17: 0 | S17: =-COS(S15) ->  | X17: y | Y17: 0 | Z17: =-COS(Z15) ->  | AE17: y | AF17: 0 | AG17: =-COS(AG15) ->  | AL17: y | AM17: 0 | AN17: =-COS(AN15) -> -0.8461087541 | AS17: y | AT17: 0 | AU17: =-COS(AU15) -> -6.125742275e-17 | AZ17: y | BA17: 0 | BB17: =-COS(BB15) -> -0.6840419807 | BG17: y | BH17: 0 | BI17: =-COS(BI15) -> 
D19: Value | E19: Label
C20: 50 | D20: 0 | E20: 50
C21: =E21 -> 40 | D21: =D31/D33 -> 5 | E21: =E20+$B$26 -> 40
C22: =E22 -> 30 | D22: =D21 -> 5 | E22: =E21+$B$26 -> 30
C23: 20 | D23: =D22 -> 5 | E23: 20
A24: White | C24: 10 | D24: 5 | E24: 10 | Q24: White | X24: White | AE24: White | AL24: White | AS24: White | AZ24: White | BG24: White
A25: Total | B25: 50 | C25: 0 | D25: 5 | E25: 0 | Q25: Total | R25: 50 | X25: Total | Y25: 50 | AE25: Total | AF25: 50 | AL25: Total | AM25: 50 | AS25: Total | AT25: 50 | AZ25: Total | BA25: 50 | BG25: Total | BH25: 50
A26: Increment | B26: -10 | C26: -10 | D26: 5 | E26: -10 | Q26: Increment | R26: -10 | X26: Increment | Y26: -10 | AE26: Increment | AF26: -10 | AL26: Increment | AM26: -10 | AS26: Increment | AT26: -10 | AZ26: Increment | BA26: -10 | BG26: Increment | BH26: -10
A27: Conversion | B27: =100/B25 -> 2 | C27: -20 | D27: 5 | E27: -20 | Q27: Conversion | R27: =100/R25 -> 2 | X27: Conversion | Y27: =100/Y25 -> 2 | AE27: Conversion | AF27: =100/AF25 -> 2 | AL27: Conversion | AM27: =100/AM25 -> 2 | AS27: Conversion | AT27: =100/AT25 -> 2 | AZ27: Conversion | BA27: =100/BA25 -> 2 | BG27: Conversion | BH27: =100/BH25 -> 2
C28: -30 | D28: 5 | E28: -30
C29: -40 | D29: 5 | E29: -40
C30: -50 | D30: 5 | E30: -50
D31: 50
D33: 10
D35: =SUM(D20:D30) -> 50

Sheet empresa_ccaa
M3: =Dashboard!M3 -> 2021
M4: =Dashboard!M4 -> OCTUBRE
K5: Empresa | L5: =L9 -> iEMPRESA
C9: Facturación, € | F9: ASEMPLEO | G9: ASEMPLEO | K9: Empresa = | L9: iEMPRESA
C10: Dato acumulado a | E10: =M4 -> OCTUBRE | F10: =Dashboard!B7 -> 2020 | G10: =Dashboard!C7 -> 2021 | J10: Facturación | K10: =F10 -> 2020 | L10: =G10 -> 2021
H11: Estructura (%) | J11: Datos acumulados | M11: Estructura (%) | EJ11: check
F12: 2787417360 | G12: 3286195887 | H12: =G12/G$12 -> 1 | I12: TOTAL | K12: =SUM(K13:K29) -> 0 | L12: =SUM(L13:L29) -> 0 | M12: =L12/L$12 ->  | EJ12: =L12/K12-1 -> 
F13: 254583363.1 | G13: 320831171.9 | H13: =G13/G$12 -> 0.09762995967 | I13: ANDALUCIA | M13: =L13/L$12 ->  | EJ13: =L13/K13-1 -> 
F14: 130608889.7 | G14: 164530787.4 | H14: =G14/G$12 -> 0.0500672489 | I14: ARAGON | M14: =L14/L$12 ->  | EJ14: =L14/K14-1 -> 
F15: 51537167.06 | G15: 63135218.52 | H15: =G15/G$12 -> 0.01921225048 | I15: ASTURIAS | M15: =L15/L$12 ->  | EJ15: =L15/K15-1 -> 
F16: 5996077.824 | G16: 11742268.6 | H16: 0.003573210181 | I16: BALEARES | EJ16: =L16/K16-1 -> 
F17: 42183954.01 | G17: 43579040.06 | H17: 0.01326124235 | I17: CANARIAS | EJ17: =L17/K17-1 -> 
F18: 71937947.58 | G18: 87811301.96 | H18: 0.02672126221 | I18: CANTABRIA | EJ18: =L18/K18-1 -> 
F19: 168688039.2 | G19: 206417714.5 | H19: 0.06281357581 | I19: CASTILLA-LA MANCHA | EJ19: =L19/K19-1 -> 
F20: 175827895.9 | G20: 179086356.6 | H20: 0.05449655552 | I20: CASTILLA Y LEÓN | EJ20: =L20/K20-1 -> 
F21: 632199489 | G21: 767786738.2 | H21: 0.2336399791 | I21: CATALUÑA | M21: =L21/L$12 ->  | EJ21: =L21/K21-1 -> 
F22: 209750441.8 | G22: 285573523.1 | H22: 0.08690094352 | I22: COMUNIDAD VALENCIANA | EJ22: =L22/K22-1 -> 
F23: 30275918.08 | G23: 42863364.72 | H23: 0.01304346004 | I23: EXTREMADURA | EJ23: =L23/K23-1 -> 
F24: 130404339.2 | G24: 123392668.9 | H24: 0.03754878686 | I24: GALICIA | EJ24: =L24/K24-1 -> 
F25: 459041624.3 | G25: 515229583.2 | H25: 0.1567860228 | I25: MADRID | EJ25: =L25/K25-1 -> 
F26: 212469362.1 | G26: 222651457.7 | H26: 0.06775355621 | I26: MURCIA | EJ26: =L26/K26-1 -> 
F27: 76564832.55 | G27: 86448972.51 | H27: 0.02630670097 | I27: NAVARRA | EJ27: =L27/K27-1 -> 
F28: 109955937.5 | G28: 139574424.6 | H28: 0.04247294727 | I28: PAIS VASCO | EJ28: =L28/K28-1 -> 
F29: 25392081.21 | G29: 25541294.15 | H29: 0.007772298131 | I29: RIOJA (LA) | EJ29: =L29/K29-1 -> 
A31: Fuente: Cifras consolidadas del sector. ASEMPLEO ©.
A32: Nota de Confidencialidad: Este informe comparativo se genera con los datos propios de la Empresa.
A114: D03: | D114: D03: | G114: D03 : | H114: Variación Interanual (%)
A115: MES: | B115: ACUMULADO A LA FECHA | D115: =A115 -> MES: | E115: =B115 -> ACUMULADO A LA FECHA | G115: =D115 -> MES: | H115: Tasa % i.a.
B117: Facturación | E117: Facturación | H117: Facturación
I118: check
A119: TOTAL | B119: 3286195887 | D119: TOTAL | E119: 2787417360 | G119: TOTAL | H119: 0.1789393055 | I119: =B119/E119-1 -> 0.1789393055
A120: ANDALUCIA | B120: 320831171.9 | D120: ANDALUCIA | E120: 254583363.1 | G120: ANDALUCIA | H120: 0.2602204952 | I120: =B120/E120-1 -> 0.2602204952
A121: ARAGON | B121: 164530787.4 | D121: ARAGON | E121: 130608889.7 | G121: ARAGON | H121: 0.2597212014 | I121: 0.2597212014
A122: ASTURIAS | B122: 63135218.52 | D122: ASTURIAS | E122: 51537167.06 | G122: ASTURIAS | H122: 0.2250424717 | I122: 0.2250424717
A123: BALEARES | B123: 11742268.6 | D123: BALEARES | E123: 5996077.824 | G123: BALEARES | H123: 0.9583249156 | I123: 0.9583249156
A124: CANARIAS | B124: 43579040.06 | D124: CANARIAS | E124: 42183954.01 | G124: CANARIAS | H124: 0.03307148606 | I124: 0.03307148606
A125: CANTABRIA | B125: 87811301.96 | D125: CANTABRIA | E125: 71937947.58 | G125: CANTABRIA | H125: 0.220653423 | I125: 0.220653423
A126: CASTILLA-LA MANCHA | B126: 206417714.5 | D126: CASTILLA-LA MANCHA | E126: 168688039.2 | G126: CASTILLA-LA MANCHA | H126: 0.223665385 | I126: 0.223665385
A127: CASTILLA Y LEÓN | B127: 179086356.6 | D127: CASTILLA Y LEÓN | E127: 175827895.9 | G127: CASTILLA Y LEÓN | H127: 0.01853210298 | I127: 0.01853210298
A128: CATALUÑA | B128: 767786738.2 | D128: CATALUÑA | E128: 632199489 | G128: CATALUÑA | H128: 0.2144690902 | I128: 0.2144690902
A129: COMUNIDAD VALENCIANA | B129: 285573523.1 | D129: COMUNIDAD VALENCIANA | E129: 209750441.8 | G129: COMUNIDAD VALENCIANA | H129: 0.3614918793 | I129: 0.3614918793
A130: EXTREMADURA | B130: 42863364.72 | D130: EXTREMADURA | E130: 30275918.08 | G130: EXTREMADURA | H130: 0.4157577191 | I130: 0.4157577191
A131: GALICIA | B131: 123392668.9 | D131: GALICIA | E131: 130404339.2 | G131: GALICIA | H131: -0.05376868809 | I131: -0.05376868809
A132: MADRID | B132: 515229583.2 | D132: MADRID | E132: 459041624.3 | G132: MADRID | H132: 0.1224027536 | I132: 0.1224027536
A133: MURCIA | B133: 222651457.7 | D133: MURCIA | E133: 212469362.1 | G133: MURCIA | H133: 0.04792265359 | I133: 0.04792265359
A134: NAVARRA | B134: 86448972.51 | D134: NAVARRA | E134: 76564832.55 | G134: NAVARRA | H134: 0.1290950378 | I134: 0.1290950378
A135: PAIS VASCO | B135: 139574424.6 | D135: PAIS VASCO | E135: 109955937.5 | G135: PAIS VASCO | H135: 0.2693668731 | I135: 0.2693668731
A136: RIOJA (LA) | B136: 25541294.15 | D136: RIOJA (LA) | E136: 25392081.21 | G136: RIOJA (LA) | H136: 0.005876357316 | I136: =B136/E136-1 -> 0.005876357316
A137: Ceuta y Melilla | D137: Ceuta y Melilla | G137: Ceuta y Melilla
